Cogmind - Beta 15 @@@ ROGUE MODE // 2025.06.14 @ 20:49:49 Player: quak Result: Destroyed by L-31 Rogue with Katana Performance ------------- Evolutions (1) 500 Regions Visited (2) 400 Robots Destroyed (32) 160 Value Destroyed (670) 670 Prototype IDs (0) 0 Alien Tech Used (0) 0 Bonus (0) 0 TOTAL SCORE: 1730 Bonus ------- None Cogmind --------- Core Integrity 0/400 Matter 300/300 Energy 100/100 System Corruption 0% Temperature Cool (37) Movement Core (350) Ox6 Location -9/Materials Parts ------- > --- POWER (1) -------- (None) > --- PROPULSION (2) --- (None) > --- UTILITY (4) ------ Large Storage Unit Improved Terrain Scanner Hacking Suite > --- WEAPON (2) ------- (None) > --- INVENTORY (15) --- Ion Engine Ion Engine Wheel Wheel Heat Sink Medium Matter Pod (100) Small Laser Datajack Peak State ------------ > --- POWER ------------ Ion Engine > --- PROPULSION ------- Light Treads Wheel > --- UTILITY ---------- Heat Sink Medium Matter Pod Improved Terrain Scanner Hacking Suite > --- WEAPON ----------- Small Laser Small Laser > --- INVENTORY -------- Ion Engine Wheel Medium Matter Pod Small Laser Datajack [Rating: 13] Favorites ----------- Power Light Ion Engine Engine Light Ion Engine Propulsion Light Treads Treads Light Treads Wheel Wheel Utility Improved Terrain Scanner Device Improved Terrain Scanner Storage Large Storage Unit Hackware Hacking Suite Weapon EM Pulse Gun Energy Gun EM Pulse Gun Ballistic Gun Light Assault Rifle Build | -11 -10 -9 ------- Run | Yrd Mat Mat Slots Evolved 2 | . . 2 Power . | . . . Propulsion . | . . . Utility 2 | . . 2 Weapon . | . . . Parts Attached 26 | 6 13 7 Power 6 | 1 3 2 Engine 6 | 1 3 2 Core . | . . . Reactor . | . . . Propulsion 5 | 2 1 2 Treads 3 | 2 . 1 Leg . | . . . Wheel 2 | . 1 1 Hover . | . . . Flight . | . . . Utility 7 | 1 3 3 Device 4 | 1 3 . Storage 2 | . . 2 Processor . | . . . Hackware 1 | . . 1 Protection . | . . . Artifact . | . . . Weapon 8 | 2 6 . Energy Gun 6 | 2 4 . Energy Cannon . | . . . Ballistic Gun 2 | . 2 . Ballistic Cannon . | . . . Launcher . | . . . Special Weapon . | . . . Impact Weapon . | . . . Slashing Weapon . | . . . Piercing Weapon . | . . . Special Melee Weapon . | . . . Unidentified Prototypes . | . . . Parts Lost 12 | . 9 3 Power 3 | . 2 1 Propulsion 2 | . 2 . Utility 2 | . 2 . Weapon 5 | . 3 2 Highest Loss Streak 5 | . 5 3 To Critical Strikes . | . . . Average Backups 2 | . 2 5 Power . | . . . Propulsion . | . . 1 Utility 1 | . 1 1 Weapon . | . . 1 Tool/Special . | . . . Unused Backups 3 | . 1 2 Power . | . . . Propulsion . | . . . Utility 2 | . 1 1 Weapon . | . . . Tool/Special 1 | . . 1 Average Slot Usage (%) 85 | . 87 81 Engine 12 | . 13 11 Treads 20 | . 24 8 Wheel 2 | . . 7 Device 20 | . 21 17 Storage 1 | . . 4 Hackware 2 | . . 10 Energy Gun 19 | . 18 22 Ballistic Gun 6 | . 8 . Peak Build Rating 13 | 8 9 13 Average Rating 8 | 4 7 11 On Entrance 5 | . 8 8 Naked Turns 11 | . 11 . Heaviest Build 30 | 8 9 30 Greatest Support 40 | 40 40 20 Greatest Overweight (x) 2 | . 2 1 Average Overweight (x) . | . . . Largest Inventory Capacity 15 | 5 5 15 Average Capacity 6 | 5 5 9 Most Carried 8 | . 5 8 Average Carried 2 | . 2 5 Final Capacity 15 | 5 5 15 Final Carried 8 | . 4 8 Class Distribution -------------------- 70% | Mutant 29% | Scavenger-Mutant Dominant Class ---------------- Mutant | -10/Materials Scavenger-Mutant | -9/Materials Resources | -11 -10 -9 ----------- Run | Yrd Mat Mat Matter Collected 604 | 131 402 71 Remotely 303 | . 303 . Salvage Created 980 | 19 660 301 Parts 72 | 4 52 16 Haulers Intercepted 3 | . 2 1 Recyclers Shooed . | . . . Parts Field Recycled . | . . . Retrieved Matter . | . . . Parts Self-Destructed . | . . . Prevented . | . . . Kills | -11 -10 -9 ------- Run | Yrd Mat Mat Combat Hostiles Destroyed 19 | . 15 4 Melee 2 | . 2 . Guns 16 | . 12 4 AOE 1 | . 1 . Classes Destroyed 8 | 1 6 1 Worker 2 | . 1 1 Tunneler 2 | 1 1 . Hauler 3 | . 2 1 Operator 1 | . 1 . Watcher 5 | . 3 2 Swarmer 6 | . 6 . Grunt 12 | . 9 3 Sentry 1 | . . 1 Best Kill Streak 7 | 1 7 3 Combat Bots Only 5 | . 5 2 Max Kills in Single Turn 2 | 1 2 2 Gunslinging . | . . . Exploded 1 | . 1 . Melee 1 | . 1 . Uniques/NPCs Destroyed . | . . . Combat | -11 -10 -9 -------- Run | Yrd Mat Mat Hostile Shots Fired 173 | . 117 56 Missed 41 | . 30 11 Hits 132 | . 87 45 Melee 7 | . . 7 Projectile 125 | . 87 38 Critical Strikes 3 | . 1 2 Damage Taken 1673 | . 895 778 Core 656 | . 245 411 Absorbed by Shields . | . . . Core Remaining (%) 51 | 100 2 . Volleys Fired 112 | 3 79 30 Largest 2 | 2 2 2 Hottest 90 | 90 80 80 Shots Fired 199 | 6 134 59 Gun 199 | 6 134 59 Cannon . | . . . Launcher . | . . . Special . | . . . Kinetic 86 | . 86 . Thermal 80 | 3 18 59 Explosive . | . . . Electromagnetic 33 | 3 30 . Robot Hit Streak 13 | 2 7 13 Robot Miss Streak 6 | 1 4 6 Penetration Max . | . . . Secondary Targets 1 | . . 1 Max Gunslinging Chain 1 | . . 1 Shots Hit Robots 118 | 4 75 39 Core Hits 58 | 1 39 18 Critical Kills . | . . . Critical Parts Destroyed . | . . . Critical Strikes . | . . . Melee Attacks . | . . . Impact . | . . . Slashing . | . . . Piercing . | . . . Sneak Attacks . | . . . Combat Hostiles . | . . . Follow-up Attacks . | . . . Damage Inflicted 1335 | 51 844 440 Guns 1226 | 51 735 440 Cannons . | . . . Explosions 91 | . 91 . Melee . | . . . Ramming 18 | . 18 . Kinetic 438 | . 438 . Thermal 669 | 25 204 440 Explosive . | . . . Electromagnetic 210 | 26 184 . Impact . | . . . Slashing . | . . . Piercing . | . . . Highest Corruption . | . . . Average Corruption . | . . . Corruption Purged . | . . . Corruption Blocked . | . . . Overload Shots . | . . . Overflow Damage . | . . . Projectiles . | . . . Explosions . | . . . Melee . | . . . Knockbacks . | . . . Impact . | . . . Kinetic . | . . . Secondary . | . . . Self-Inflicted Damage 51 | . 51 . Shots 1 | . 1 . Rammed 8 | . 8 . Targets Rammed 8 | . 8 . Kicked . | . . . Crushed . | . . . Highest Temperature 141 | 90 74 141 Average Temperature 28 | 48 22 33 Received Heat Transfer 570 | . 303 267 Siege Activations . | . . . Martial Activations . | . . . Shielding Activations . | . . . Robots Disrupted . | . . . Combat Hostiles . | . . . Robots Corrupted . | . . . Combat Hostiles . | . . . Parts Fried . | . . . Impact Corruptions . | . . . Robots Melted . | . . . Combat Hostiles . | . . . Parts Melted 1 | . . 1 Heat Transferred 1424 | 74 350 1000 Parts Sabotaged . | . . . Parts Stolen . | . . . Parts Stripped . | . . . Power Chain Reactions 1 | . 1 . Alert | -11 -10 -9 ------- Run | Yrd Mat Mat Maximum Alert Level . | . . . Low Security (%) 100 | 100 100 100 Level 1 . | . . . Level 2 . | . . . Level 3 . | . . . Level 4 . | . . . Level 5 . | . . . High Security . | . . . Max Security . | . . . Peak Influence 141 | 5 141 67 Initial 55 | . 3 55 Average 35 | 1 35 42 Influence Increases 592 | 5 424 163 Destroy 0b10 Robot/C 380 | . 300 80 Destroy 0b10 Robot/NC 65 | 5 40 20 Destroy Leader 96 | . 70 26 Successful Hack 17 | . 10 7 Destroy Structure 4 | . 4 . Lose Combat Pursuer 30 | . . 30 Influence Decreases 574 | . 296 278 Entered New Map 80 | . 2 78 Time Decay 374 | . 204 170 Lost Part 120 | . 90 30 Squads Dispatched 3 | . 2 1 Investigation 2 | . 1 1 Extermination . | . . . Reinforcement 1 | . 1 . Assault . | . . . Garrison . | . . . Intercept . | . . . Searches Triggered . | . . . Construction Impeded . | . . . Haulers Reinforced . | . . . Active Scanning Responses . | . . . Cargo Convoy Interrupts . | . . . Stealth | -11 -10 -9 --------- Run | Yrd Mat Mat Distress Signals 1 | . . 1 Communications Jammed . | . . . Distress Signals . | . . . Times Spotted 32 | . 21 11 Peak Tracking Total 6 | . 6 5 Tactical Retreats 1 | . . 1 Traps | -11 -10 -9 ------- Run | Yrd Mat Mat Traps Triggered 2 | . 1 1 Indirectly . | . . . Trap Hack Attempts . | . . . Triggered . | . . . Disarmed . | . . . Reprogrammed . | . . . Reused . | . . . Traps Extracted . | . . . Installed . | . . . Triggered . | . . . Machines | -11 -10 -9 ---------- Run | Yrd Mat Mat Machines Disabled . | . . . Max in Single Turn . | . . . Machines Repaired . | . . . Machines Dismantled . | . . . Machines Sabotaged . | . . . Overloaded Fab Kills . | . . . Hacking | -11 -10 -9 --------- Run | Yrd Mat Mat Machines Accessed 7 | . 6 1 Terminals 5 | . 4 1 Fabricators . | . . . Repair Stations 1 | . 1 . Recycling Units 1 | . 1 . Scanalyzers . | . . . Garrison Access . | . . . Total Hacks 17 | . 14 3 Successful 7 | . 6 1 Failed 10 | . 8 2 Catastrophic 4 | . 3 1 Database Lockouts . | . . . Manual 9 | . 6 3 Terminals 13 | . 10 3 Fabricators . | . . . Repair Stations 1 | . 1 . Recycling Units 3 | . 3 . Scanalyzers . | . . . Garrison Access . | . . . Terminal Hacks 4 | . 3 1 Branch Access Points 1 | . . 1 Locate Traps 1 | . 1 . Transport Status 1 | . 1 . Hauler Manifests 1 | . 1 . Fabricator Hacks . | . . . Repair Station Hacks 1 | . 1 . Scan Component 1 | . 1 . Recycling Unit Hacks 2 | . 2 . Process 1 | . 1 . Report Inventory 1 | . 1 . Scanalyzer . | . . . Garrison Access Hacks . | . . . Unauthorized Hacks . | . . . Terminals . | . . . Fabricators . | . . . Repair Stations . | . . . Recycling Units . | . . . Scanalyzers . | . . . Garrison Access . | . . . Data Cores Recovered . | . . . Used . | . . . Hacking Detections 6 | . 5 1 Full Trace Events . | . . . Feedback Events . | . . . Feedback Blocked . | . . . Robot Schematics Acquired . | . . . Robots Built . | . . . Authchips . | . . . Time . | . . . Total Robot Build Rating . | . . . Part Schematics Acquired . | . . . Parts Built . | . . . Authchips . | . . . Time . | . . . Total Part Build Rating . | . . . Parts Repaired . | . . . Time . | . . . Parts Recycled . | . . . Recycled Matter 47 | . 47 . Retrieved Matter . | . . . Retrieved Components . | . . . Parts Scanalyzed . | . . . Part Schematics Acquired . | . . . Parts Damaged . | . . . Bothacking | -11 -10 -9 ------------ Run | Yrd Mat Mat Used RIF Installer . | . . . Robots Hacked . | . . . Non-combat . | . . . Combat . | . . . Robot Hacks Applied . | . . . Relay Couplers Released . | . . . Fabnet Peak Effective % . | . . . Robots Rewired . | . . . Allies Hacked . | . . . Hacks Repelled . | . . . Allies | -11 -10 -9 -------- Run | Yrd Mat Mat Total Allies . | . . . Largest Group . | . . . Highest-Rated Group . | . . . Highest-Rated Ally . | . . . Total Orders . | . . . Ally Attacks . | . . . Total Damage . | . . . Kills . | . . . Allies Corrupted . | . . . Allies Melted . | . . . Intel | -11 -10 -9 ------- Run | Yrd Mat Mat Active Infowar (turns) 1140 | 6 780 354 Terrain 1140 | 6 780 354 Robot Analysis Total . | . . . Derelict Logs Recovered . | . . . Drone Launches . | . . . Drone Recoveries . | . . . Exploration | -11 -10 -9 ------------- Run | Yrd Mat Mat Turns Passed 1468 | 55 1059 354 Spaces Moved 716 | 28 528 160 Core 29 | 6 23 . Treads 611 | 22 484 105 Legs . | . . . Wheels 76 | . 21 55 Hover . | . . . Flight . | . . . Fastest Speed 50 | 50 50 80 Average Speed 154 | 136 154 155 Slowest Speed 240 | 160 160 240 Overloaded Moves . | . . . Propulsion Burnouts . | . . . Robots Hopped . | . . . Potential Cave-ins . | . . . Cave-ins Triggered . | . . . Exploration Rate (%) 36 | 3 78 27 Regions Visited 2 Branch Regions . Pre-discovered Areas . | . . . Known Exits Taken . | . . . Unknown Exits Taken 2 | 1 1 . Scrap Searched . | . . . Spaces Dug . | . . . Terrain Destroyed 6 | . 6 . Melee . | . . . Projectile . | . . . AOE 6 | . 6 . Terrain Rammed . | . . . Walls Destroyed . | . . . Machines Disabled . | . . . Actions | -11 -10 -9 --------- Run | Yrd Mat Mat Total 891 | 36 650 205 Wait 17 | . 13 4 Move 714 | 27 527 160 Hop . | . . . Pick Up 5 | . 5 . Fast Attach 20 | 6 10 4 Attach 1 | . . 1 Detach 4 | . 1 3 Swap 5 | . 3 2 Drop 5 | . 4 1 Fire 112 | 3 79 30 Melee . | . . . Ram 8 | . 8 . Kick . | . . . Crush . | . . . Escape Stasis . | . . . Rewire . | . . . Trap . | . . . Miscellaneous . | . . . Route ------- -11/Scrapyard -10/Materials (discovered 4 exits: *Mat x3 / [*Min]) -9/Materials (discovered 2 exits: Min x2) History --------- Turn | Location | Event 18 | -11/Scrapyard | Discovered new exit (range 16) 56 | -11/Scrapyard | Entered Materials 293 | -10/Materials | Discovered new exit (range 8) 310 | -10/Materials | Build established: Mutant 356 | -10/Materials | Discovered new exit (range 16) 505 | -10/Materials | Discovered new exit (range 5) 757 | -10/Materials | Discovered new exit (range 5) 901 | -10/Materials | Lost 4 parts (1p2u1w) 1010 | -10/Materials | Core integrity fell below 50% 1029 | -10/Materials | Core integrity fell below 20% 1060 | -10/Materials | Lost 5 parts (1p2n2w) 1115 | -10/Materials | Entered another Materials area 1115 | -9/Materials | Evolved 2 slots: Utility x2 1134 | -9/Materials | Identified exit to Mines 1338 | -9/Materials | Build established: Scavenger-Mutant 1460 | -9/Materials | Core integrity fell below 50% 1468 | -9/Materials | Core integrity fell below 20% 1469 | -9/Materials | Destroyed by L-31 Rogue with Katana Last Messages --------------- 01366_ Y-45 Defender destroyed. 01369_ Acquired 10 matter. 01402_ Triggered Alarm Trap. 01402_ An alarm sounds. 01402_ ALERT: Alarm triggered, dispatching investigation squad. 01404_ K-01 Serf collects debris. 01408_ U-05 Engineer lays Concrete. 01433_ Weight Redist. System melted. 01433_ A-02 Transporter destroyed. 01443_ Acquired 10 matter. 01446_ R-06 Scavenger collects Arm. Wheel. 01448_ R-06 Scavenger collects Plasma Cutter. 01457_ Lgt. Treads severed. 01458_ Critical hit (Burn: +37). 01460_ R-06 Scavenger collects Lgt. Treads. 01461_ Sml. Laser destroyed. 01462_ Imp. Ion Engine destroyed. 01464_ R-06 Scavenger collects Plasma Cutter. 01464_ Sml. Laser destroyed. 01467_ R-06 Scavenger collects Plasma Cutter. Map ----- +----------------------------------------------------+ | ?????????????????????????????????????????????????? | | ?????????????????????????????????????????????????? | | ?????????????????????????????????????????????????? | | ?????????????????????????????????????????????????? | | ?????????????????????????????????????????????????? | | ?????????????????????????????????????????????????? | | ?????????????????????????????????????????????????? | | ?????????????????????????????????????????????????? | | ?????????????????????????????????????????????????? | | ?????????????????????????????????????????????????? | | ???????????????????????? Y ??????????????????????? | | ???????????????????????? ????? ????????????????? | | ??????????????????????? r??????????????????????? | | ???????????????????????# #?????????????????????? | | ??????????????????????## #?????#??????? ????## | | ???????????????????????# #???#????????? #???# | | ???????????????????????# #??????????#?? #???# | | ???????????????????????# #????????????# #?#?# | | ???????????????????????# #??????????#?# #???# | | ???????????????????????# #???????#??#?# #???# | | ??????????????????????? #????????????# #???# | | ???????????????????????# ############## ##??## | | ???????????????????????# u #??? ? | | ????????????????????#?## ???? #????? | | ???????????????????????# ?????? ? #????? | | ??????????????????????## @ #??########### #?#??? | | ???????????????? ??##??#!lr#??# # #????? | | ??????????????? ???????# #??# # #????? | | ???????????????????????# !#?## # ###### | | ???????????????????????# ##?# # | | ???????????????????????# #?## """"" / | | ????????????????? ?????# #??# """"" # | | ???????????????????????# #??# """""% ####+#### | | ???????????????????????# g#??# =%! # ?# | | ???????????? ########## #??######+#### #! | | ???????????" ##?????## #??# ## | | ??????????? #?????### #### """ ## | | ??????????? ####### ## """ #? | | ??????????? ## """ !#? | | ??????????? ## #? | | ????????????############ ## """ #? | | ???????????????????????###### ## ##???? #? | | ???????????????????????#????# ########????? #? | | ????????????????????????????# #??#????????? #? | | ????????????????????????????# #?????????????###? | | ??????????????#?????????#???# #??????#??#?#????? | | ????????????????????????????# #??#?????????????? | | ?????????????????????????#?## #??????#???##????? | | ????????????????????????????# #?#???#??????????? | | ?????????????????#?????#????# #????????????????? | +----------------------------------------------------+ Best States ------------- Heat Dissipation 38 Energy Generation 12 Energy Capacity 265 Matter Stores 300 Matter Capacity 300 Sight Range 16 Terrain Scan Range 16 Terrain Scan Density 10 Evasion (%) 50 Recoil Reduction 2 Offensive Hacking 10 Item Schematics ----------------- None Robot Schematics ------------------ None Fabricated ------------ Nothing Repaired ---------- Nothing Alien Tech Used ----------------- None Achievements -------------- None Challenges ------------ None Game ------ Seed PowerSwordReactor Manual? 0 Play Time 00:17:03 Cumulative 6.8 hours Start 2025.06.14 @ 20:33:39 End 2025.06.14 @ 20:49:49 Sessions 1 Manual Loads 0 Difficulty Rogue Special Mode None Game No. 9 Rogue 9 Adventurer 0 Explorer 0 Win Type - Total 0 Types 0/0/0/0/0/0/0/0/0/0 Lore% 3 Gallery% 8 Achievement% 15 Wizard Run 0 Options --------- Layout 0 ASCII 0 Keyboard 1 Movement Vi Keybinds 0 Fullscreen 1 Font 18/SmallcapsGlow Map View 76x50 Zoom Use 0% Tactical HUD 1 Map Filters NONE Filters NONE Steam 1 RUN: 1514f871-2ce2-44c7-92b1-ca65b364c7d3